fUST/lending_fUST_20250809
["ID","MTS","AMOUNT","RATE_DAILY","PERIOD"]
[378053583,1754704244380,-460.0,0.0002254,2]
[378053584,1754704244389,-460.0,0.0002254,2]
[378053585,1754704244398,-152.369728,0.0002254,7]
[378053586,1754704244407,-460.0,0.0002254,2]
[378053587,1754704244417,-151.575442,0.0002254,7]
[378053588,1754704244427,-151.0,0.0002254,7]
[378053589,1754704244436,-151.0,0.0002254,7]
[378053590,1754704244445,-151.973005,0.0002254,7]
[378053591,1754704244580,-466.98469905,0.0002254,2]
[378053592,1754704244590,-151.0,0.0002254,7]
[378053593,1754704244600,-151.0,0.0002254,7]
[378053594,1754704244609,-460.0,0.0002254,2]
[378053595,1754704244618,-460.0,0.0002254,2]
[378053596,1754704244628,-460.0,0.0002254,2]
[378053597,1754704244637,-460.0,0.0002254,2]
[378053598,1754704244646,-460.0,0.0002254,2]
[378053599,1754704244655,-460.0,0.0002254,2]
[378053600,1754704244665,-214.281808,0.0002254,7]
[378053601,1754704244674,-153.015428,0.0002254,7]
[378053602,1754704244683,-154.503295,0.0002254,7]
[378053603,1754704244692,-460.0,0.0002254,2]
[378053604,1754704244701,-460.0,0.0002254,2]
[378053605,1754704244711,-468.34271886,0.0002254,2]
[378053606,1754704244720,-460.0,0.0002254,2]
[378053607,1754704244729,-460.0,0.0002254,2]
[378053608,1754704244738,-460.0,0.0002254,2]
[378053609,1754704244747,-460.0,0.0002254,2]
[378053610,1754704244756,-481.09882638,0.0002254,2]
[378053611,1754704244766,-470.82914513,0.0002254,2]
[378053612,1754704244775,-460.0,0.0002254,2]
[378053613,1754704244784,-353.15238428,0.0002254,2]
[378053614,1754704244794,-154.228275,0.0002254,7]
[378053615,1754704244803,-468.63180794,0.0002254,2]
[378053616,1754704244812,-460.0,0.0002254,2]
[378053617,1754704244821,-491.50202138,0.0002254,2]
[378053618,1754704244830,-460.0,0.0002254,2]
[378053619,1754704244840,-151.0,0.0002254,7]
[378053620,1754704244852,-460.0,0.0002254,2]
[378053621,1754704244861,-460.0,0.0002254,2]
[378053622,1754704244870,-460.0,0.0002254,2]
[378053623,1754704244879,-469.82268104,0.0002254,2]
[378053624,1754704244888,-151.0,0.0002254,7]
[378053625,1754704244899,-255.642124,0.0002254,7]
[378053626,1754704244908,-255.642124,0.0002254,7]
[378053627,1754704244917,-151.0,0.0002254,7]
[378053628,1754704244927,-12663.41139009,0.0002254,7]
[378053629,1754704244937,-151.0,0.0002254,7]
[378053630,1754704244947,-151.0,0.0002254,7]
[378053631,1754704244956,-193.077546,0.0002254,7]
[378053632,1754704244965,-151.0,0.0002254,7]
[378053633,1754704244975,-193.077546,0.0002254,7]
[378053634,1754704244984,-151.0,0.0002254,7]
[378053635,1754704244993,-151.0,0.0002254,7]
[378053636,1754704245003,-151.0,0.0002254,7]
[378053637,1754704245012,-294.794306,0.0002254,7]
[378053638,1754704245023,-294.794306,0.0002254,7]
[378053639,1754704245032,-262.890075,0.0002254,7]
[378053641,1754704245043,-151.0,0.0002254,7]
[378053642,1754704245054,-151.0,0.0002254,7]
[378053643,1754704245064,-153.606308,0.0002254,7]
[378053644,1754704245074,-151.0,0.00022541,2]
[378053645,1754704245083,-151.0,0.00022541,2]
[378053646,1754704245094,-151.0,0.00022541,2]
[378053647,1754704245103,-151.0,0.00022541,2]
[378053648,1754704245112,-151.0,0.00022541,2]
[378053649,1754704245121,-151.0,0.00022541,7]
[378053650,1754704245132,-151.0,0.00022541,7]
[378053651,1754704245142,-151.0,0.00022541,7]
[378053652,1754704245153,-151.0,0.00022541,7]
[378053653,1754704245162,-461.961372,0.00022541,7]
[378053654,1754704245171,-461.961372,0.00022541,7]
[378053655,1754704245181,-151.0,0.00022542,7]
[378053656,1754704245191,-151.0,0.00022542,7]
[378053657,1754704245200,-151.0,0.00022542,7]
[378053658,1754704245209,-151.0,0.00022543,2]
[378053659,1754704245218,-412.38288072,0.00022544,2]
[378053660,1754704245228,-150.0,0.00022573,2]
[378053661,1754704245237,-288.484862,0.00022573,7]
[378053662,1754704245246,-621.55536,0.00022573,7]
[378053663,1754704245255,-621.55536,0.00022573,7]
[378053664,1754704245264,-487.13639143,0.00022712,2]
[378053665,1754704245274,-460.0,0.00022712,2]
[378053666,1754704245283,-460.0,0.00022712,2]
[378053667,1754704245292,-460.0,0.00022712,2]
[378053668,1754704245302,-1638.53,0.00022712,2]
[378053669,1754704245311,-460.0,0.00022712,2]
[378053670,1754704245320,-460.0,0.00022712,2]
[378053671,1754704245329,-460.0,0.00022712,2]
[378053672,1754704245339,-484.32657201,0.00022712,2]
[378053673,1754704245348,-460.0,0.00022712,2]
[378053674,1754704245357,-842.72,0.00022712,2]
[378053675,1754704245366,-1204.44,0.00022712,2]
[378053676,1754704245375,-460.0,0.00022712,2]
[378053677,1754704245384,-1498.59,0.00022712,2]
[378053678,1754704245393,-460.0,0.00022712,2]
[378053679,1754704245402,-460.0,0.00022712,2]
[378053680,1754704245411,-1000.0,0.00022714,2]
[378053681,1754704245420,-1000.0,0.00022714,2]
[378053682,1754704245430,-1000.0,0.00022714,2]
[378053683,1754704245442,-1000.0,0.00022714,2]
[378053684,1754704245451,-1000.0,0.00022714,2]
[378053685,1754704245460,-1000.0,0.00022714,2]
[378053686,1754704245469,-152.200665,0.00022715,7]
[378053687,1754704245478,-1018.67379154,0.00022715,2]
[378053688,1754704245487,-152.937178,0.00022716,7]
[378053689,1754704245496,-151.0,0.00022716,7]
[378053690,1754704245506,-152.923022,0.00022716,7]
[378053691,1754704245515,-151.883634,0.00022716,7]
[378053692,1754704245524,-152.394121,0.00022716,7]
[378053693,1754704245534,-151.0,0.00022716,7]
[378053694,1754704245544,-151.0,0.00022716,7]
[378053695,1754704245553,-151.0,0.00022716,7]
[378053696,1754704245562,-153.635097,0.00022716,7]
[378053697,1754704245572,-152.170923,0.00022716,7]
[378053698,1754704245581,-151.0,0.00022716,7]
[378053699,1754704245591,-151.0,0.00022716,7]
[378053700,1754704245600,-151.0,0.00022716,7]
[378053701,1754704245609,-255.642124,0.00022716,7]
[378053702,1754704245618,-255.642124,0.00022716,7]
[378053704,1754704245627,-461.961372,0.00022716,7]
[378053706,1754704245636,-461.961372,0.00022716,7]
[378053707,1754704245653,-151.0,0.00022716,7]
[378053708,1754704245668,-151.0,0.00022716,7]
[378053709,1754704245677,-151.0,0.00022716,7]
[378053710,1754704245688,-193.077546,0.00022716,7]
[378053711,1754704245697,-184.931468,0.00022716,7]
[378053712,1754704245706,-193.077546,0.00022716,7]
[378053713,1754704245716,-151.0,0.00022716,7]
[378053714,1754704245725,-151.0,0.00022716,7]
[378053715,1754704245734,-151.0,0.00022716,7]
[378053716,1754704245743,-294.794306,0.00022716,7]
[378053717,1754704245752,-294.794306,0.00022716,7]
[378053718,1754704245762,-562.9285822,0.00022721,2]
[378053719,1754704245771,-503.70740541,0.00022721,2]
[378053720,1754704245780,-467.66898567,0.00022721,2]
[378053721,1754704245789,-501.44830093,0.00022721,2]
[378053722,1754704245799,-1000.0,0.00022721,2]
[378053723,1754704245808,-507.0640731,0.00022721,2]
[378053724,1754704245818,-509.01474091,0.00022721,2]
[378053725,1754704245827,-4631.63565963,0.00022732,2]
[378053726,1754704245836,-541.18972896,0.00022744,2]
[378053727,1754704245850,-460.0,0.00022744,2]
[378053728,1754704245861,-460.0,0.00022744,2]
[378053729,1754704245872,-460.0,0.00022744,2]
[378053730,1754704245883,-493.10743087,0.00022744,2]
[378053732,1754704245892,-460.0,0.00022744,2]
[378053734,1754704245901,-460.0,0.00022744,2]
[378053735,1754704245911,-460.0,0.00022744,2]
[378053736,1754704245920,-488.50395581,0.00022744,2]
[378053737,1754704245932,-460.0,0.00022744,2]
[378053738,1754704245942,-460.0,0.00022744,2]
[378053740,1754704245951,-460.0,0.00022744,2]
[378053741,1754704245960,-460.0,0.00022744,2]
[378053742,1754704245970,-496.69664594,0.00022744,2]
[378053743,1754704245979,-151.0,0.00022744,7]
[378053744,1754704245988,-476.83307238,0.00022744,2]
[378053746,1754704245997,-465.92787634,0.00022744,2]
[378053747,1754704246006,-460.0,0.00022744,2]
[378053748,1754704246017,-460.0,0.00022744,2]
[378053749,1754704246026,-460.0,0.00022744,2]
[378053750,1754704246034,-460.0,0.00022744,2]
[378053751,1754704246044,-460.0,0.00022744,2]
[378053752,1754704246054,-460.0,0.00022744,2]
[378053753,1754704246063,-460.0,0.00022744,2]
[378053754,1754704246072,-205.048254,0.00022744,7]
[378053755,1754704246080,-460.0,0.00022744,2]
[378053756,1754704246089,-2932.03,0.00022744,2]
[378053757,1754704246099,-460.0,0.00022744,2]
[378053758,1754704246108,-680.04,0.00022744,2]
[378053759,1754704246118,-460.0,0.00022744,2]
[378053760,1754704246129,-477.3729841,0.00022745,2]
[378053761,1754704246138,-460.0,0.00022745,2]
[378053762,1754704246149,-460.0,0.00022745,2]
[378053763,1754704246158,-460.0,0.00022745,2]
[378053764,1754704246167,-460.0,0.00022745,2]
[378053765,1754704246177,-460.0,0.00022745,2]
[378053766,1754704246187,-460.0,0.00022745,2]
[378053767,1754704246196,-460.0,0.00022745,2]
[378053768,1754704246205,-460.0,0.00022745,2]
[378053770,1754704246214,-473.23326017,0.00022745,2]
[378053771,1754704246222,-460.0,0.00022745,2]
[378053772,1754704246232,-460.0,0.00022745,2]
[378053773,1754704246241,-460.0,0.00022745,2]
[378053774,1754704246250,-460.0,0.00022745,2]
[378053775,1754704246259,-460.0,0.00022745,2]
[378053776,1754704246268,-460.0,0.00022745,2]
[378053777,1754704246277,-460.0,0.00022745,2]
[378053778,1754704246286,-475.27628312,0.00022745,2]
[378053779,1754704246295,-460.0,0.00022745,2]
[378053780,1754704246303,-510.58651523,0.00022745,2]
[378053781,1754704246313,-460.0,0.00022745,2]
[378053782,1754704246321,-460.0,0.00022745,2]
[378053783,1754704246330,-549.85,0.00022745,2]
[378053784,1754704246339,-225.82892987,0.00022745,2]
[378053785,1754704246348,-460.0,0.00022745,2]
[378053786,1754704246357,-460.0,0.00022745,2]
[378053787,1754704246366,-781.79,0.00022745,2]
[378053789,1754704246376,-532.60303881,0.00022745,2]
[378053790,1754704246385,-177.79741401,0.00022745,2]
[378053791,1754704246394,-590.59,0.00022745,2]
[378053792,1754704246403,-460.0,0.00022745,2]
[378053793,1754704246412,-745.87,0.00022745,2]
[378053794,1754704246421,-460.0,0.00022745,2]
[378053795,1754704246430,-460.0,0.00022745,2]
[378053796,1754704246439,-460.0,0.00022745,2]
[378053797,1754704246448,-999.87,0.00022745,2]
[378053798,1754704246457,-460.0,0.00022745,2]
[378053799,1754704246466,-460.0,0.00022745,2]
[378053800,1754704246475,-460.0,0.00022745,2]
[378053801,1754704246485,-596.07,0.00022745,2]
[378053802,1754704246495,-605.28,0.00022745,2]
[378053803,1754704246504,-460.0,0.00022745,2]
[378053804,1754704246513,-460.0,0.00022745,2]
[378053805,1754704246522,-460.0,0.00022745,2]
[378053806,1754704246532,-460.0,0.00022745,2]
[378053807,1754704246541,-460.0,0.00022745,2]
[378053808,1754704246550,-621.55536,0.00022745,7]
[378053809,1754704246560,-621.55536,0.00022745,7]
[378053810,1754704246569,-460.0,0.00022745,2]
[378053811,1754704246579,-460.0,0.00022745,2]
[378053812,1754704246588,-460.0,0.00022745,2]
[378053813,1754704246598,-460.0,0.00022745,2]
[378053814,1754704246607,-219.714483,0.00022746,7]
[378053815,1754704246617,-151.0,0.00022746,7]
[378053816,1754704246627,-151.0,0.00022746,7]
[378053817,1754704246637,-193.077546,0.00022746,7]
[378053818,1754704246647,-193.077546,0.00022746,7]
[378053819,1754704246657,-151.0,0.00022746,7]
[378053820,1754704246667,-208.800812,0.00022746,7]
[378053821,1754704246676,-221.835913,0.00022746,7]
[378053822,1754704246686,-151.0,0.00022747,7]
[378053823,1754704246695,-151.0,0.00022747,7]
[378053824,1754704246705,-294.794306,0.00022747,7]
[378053825,1754704246714,-294.794306,0.00022747,7]
[378053826,1754704246724,-503.00420125,0.00022773,2]
[378053827,1754704246733,-300.81451058,0.00022773,2]
[378053828,1754704246743,-500.0,0.00022773,2]
[378053829,1754704246756,-500.0,0.00022773,2]
[378053830,1754704246766,-500.0,0.00022773,2]
[378053831,1754704246776,-396.13352281,0.00022773,2]
[378053832,1754704246785,-500.0,0.00022773,2]
[378053833,1754704246795,-501.14074767,0.00022773,2]
[378053834,1754704246804,-500.0,0.00022773,2]
[378053835,1754704246815,-500.0,0.00022773,2]
[378053836,1754704246825,-150.0,0.00022773,2]
[378053837,1754704246836,-500.0,0.00022773,2]
[378053838,1754704246849,-218.51840812,0.00022773,2]
[378053839,1754704246947,-500.62607467,0.00022773,2]
[378053840,1754704246956,-500.0,0.00022773,2]
[378053841,1754704246966,-500.0,0.00022773,2]
[378053842,1754704246976,-500.0,0.00022773,2]
[378053843,1754704246986,-500.0,0.00022773,2]
[378053844,1754704246997,-500.0,0.00022773,2]
[378053845,1754704247006,-500.0,0.00022773,2]
[378053846,1754704247017,-553.67518927,0.00022773,2]
[378053847,1754704247027,-500.0,0.00022773,2]
[378053848,1754704247036,-500.0,0.00022773,2]
[378053849,1754704247047,-500.35263696,0.00022773,2]
[378053850,1754704247057,-500.0,0.00022773,2]
[378053851,1754704247066,-500.0,0.00022773,2]
[378053852,1754704247075,-500.0,0.00022773,2]
[378053853,1754704247085,-500.0,0.00022773,2]
[378053854,1754704247095,-500.0,0.00022773,2]
[378053855,1754704247107,-500.0,0.00022773,2]
[378053856,1754704247117,-500.0,0.00022773,2]
[378053857,1754704247127,-500.0,0.00022773,2]
[378053858,1754704247136,-500.0,0.00022773,2]
[378053859,1754704247145,-500.0,0.00022773,2]
[378053860,1754704247154,-349.37854188,0.00022773,2]
[378053861,1754704247163,-500.0,0.00022773,2]
[378053862,1754704247174,-500.0,0.00022773,2]
[378053863,1754704247184,-500.0,0.00022773,2]
[378053864,1754704247193,-500.0,0.00022773,2]
[378053865,1754704247202,-202.19835109,0.00022773,2]
[378053866,1754704247212,-500.0,0.00022773,2]
[378053867,1754704247221,-500.0,0.00022773,2]
[378053868,1754704247231,-500.0,0.00022773,2]
[378053869,1754704247240,-500.0,0.00022773,2]
[378053870,1754704247250,-500.0,0.00022773,2]
[378053871,1754704247259,-500.0,0.00022773,2]
[378053872,1754704247268,-500.0,0.00022773,2]
[378053873,1754704247277,-500.0,0.00022773,2]
[378053874,1754704247286,-500.0,0.00022773,2]
[378053875,1754704247295,-168.67082871,0.00022773,2]
[378053876,1754704247304,-500.0,0.00022773,2]
[378053877,1754704247313,-500.9738876,0.00022773,2]
[378053878,1754704247322,-500.0,0.00022773,2]
[378053879,1754704247331,-621.33073829,0.00022773,2]
[378053880,1754704247341,-500.0,0.00022773,2]
[378053881,1754704247350,-500.0,0.00022773,2]
[378053882,1754704247359,-500.0,0.00022773,2]
[378053883,1754704247368,-500.0,0.00022773,2]
[378053884,1754704247378,-151.0,0.00022773,7]
[378053885,1754704247387,-151.0,0.00022773,7]
[378053886,1754704247396,-154.01442,0.00022773,7]
[378053887,1754704247405,-151.0,0.00022773,7]
[378053888,1754704247415,-255.642124,0.00022773,7]
[378053889,1754704247424,-255.642124,0.00022773,7]
[378053890,1754704247434,-461.961372,0.00022773,7]
[378053891,1754704247443,-461.961372,0.00022773,7]
[378053892,1754704247453,-460.0,0.00022814,2]
[378053893,1754704247462,-460.0,0.00022814,2]
[378053894,1754704247472,-460.0,0.00022814,2]
[378053895,1754704247481,-152.697814,0.00022814,7]
[378053896,1754704247491,-460.0,0.00022814,2]
[378053897,1754704247502,-475.13322173,0.00022814,2]
[378053898,1754704247512,-469.20784166,0.00022814,2]
[378053899,1754704247521,-460.0,0.00022814,2]
[378053900,1754704247530,-460.0,0.00022814,2]
[378053901,1754704247540,-460.0,0.00022814,2]
[378053902,1754704247550,-483.00644821,0.00022814,2]
[378053903,1754704247559,-460.0,0.00022814,2]
[378053904,1754704247568,-332.9916298,0.00022814,2]
[378053905,1754704247578,-460.0,0.00022814,2]
[378053906,1754704247588,-460.0,0.00022814,2]
[378053907,1754704247597,-476.49252751,0.00022814,2]
[378053908,1754704247606,-460.0,0.00022814,2]
[378053909,1754704247618,-460.0,0.00022814,2]
[378053910,1754704247642,-279.065584,0.00022814,7]
[378053911,1754704247651,-460.0,0.00022814,2]
[378053912,1754704247660,-160.85698884,0.00022814,2]
[378053913,1754704247670,-467.37402477,0.00022814,2]
[378053914,1754704247679,-151.0,0.00022814,7]
[378053915,1754704247689,-151.0,0.00022814,7]
[378053916,1754704247699,-151.0,0.00022814,7]
[378053917,1754704247708,-193.077546,0.00022814,7]
[378053918,1754704247719,-193.077546,0.00022814,7]
[378053919,1754704247730,-151.0,0.00022814,7]
[378053920,1754704247739,-294.794306,0.00022814,7]
[378053921,1754704247748,-294.794306,0.00022814,7]
[378053922,1754704247758,-621.55536,0.00022814,7]
[378053923,1754704247767,-621.55536,0.00022814,7]
[378053924,1754704247777,-151.0,0.00022814,7]
[378053925,1754704247786,-151.0,0.00022815,2]
[378053926,1754704247795,-151.0,0.00022815,2]
[378053927,1754704247805,-247.73543846,0.00022815,2]
[378053928,1754704247814,-151.0,0.00022815,2]
[378053929,1754704247825,-171.72918835,0.00022815,2]
[378053930,1754704247835,-151.0,0.00022817,2]
[378053931,1754704247844,-508.18444506,0.00022821,2]
[378053932,1754704247857,-1000.0,0.00022821,2]
[378053933,1754704247866,-1200.0,0.00022821,2]
[378053934,1754704247878,-1002.14349495,0.00022821,2]
[378053935,1754704247888,-501.21377576,0.00022821,2]
[378053936,1754704247898,-501.3331216,0.00022821,2]
[378053937,1754704247908,-1000.0,0.00022821,2]
[378053938,1754704247917,-503.66195297,0.00022821,2]
[378053939,1754704247927,-502.00360691,0.00022821,2]
[378053940,1754704247938,-1000.0,0.00022821,2]
[378053941,1754704247948,-1004.00151576,0.00022821,2]
[378053942,1754704247957,-1000.0,0.00022821,2]
[378053943,1754704247966,-506.57853464,0.00022821,2]
[378053944,1754704247975,-1010.91483232,0.00022821,2]
[378053945,1754704247984,-151.0,0.00022821,7]
[378053946,1754704247993,-585.08853533,0.00022822,2]
[378053947,1754704248002,-151.0,0.00022822,7]
[378053948,1754704248012,-151.0,0.00022822,7]
[378053949,1754704248022,-1813.93895922,0.00022871,2]
[378053950,1754704248031,-328.08474501,0.00022871,2]
[378053951,1754704248042,-185.33299434,0.00022871,2]
[378053952,1754704248051,-741.33197736,0.00022871,2]
[378053953,1754704248061,-1667.99694905,0.00022871,2]
[378053954,1754704248070,-255.642124,0.00022871,7]
[378053955,1754704248079,-255.642124,0.00022871,7]
[378053956,1754704248088,-607.55193722,0.00022871,2]
[378053957,1754704248098,-164.116115,0.00022871,7]
[378053958,1754704248107,-1311.02664108,0.00022874,2]
[378053959,1754704248116,-4077.28129559,0.00022878,2]
[378053960,1754704248126,-461.961372,0.00022881,7]
[378053961,1754704248135,-461.961372,0.00022881,7]
[378053962,1754704248145,-2965.32790942,0.00022887,2]
[378053963,1754704248155,-2430.20774887,0.00022889,2]
[378053964,1754704248165,-460.0,0.00022986,2]
[378053965,1754704248174,-460.0,0.00022986,2]
[378053966,1754704248184,-226.36770675,0.00022986,2]
[378053967,1754704248194,-1638.53,0.00022986,2]
[378053968,1754704248203,-460.0,0.00022986,2]
[378053969,1754704248212,-402.34077693,0.00022986,2]
[378053970,1754704248222,-460.0,0.00022986,2]
[378053971,1754704248232,-470.39167517,0.00022986,2]
[378053972,1754704248241,-842.72,0.00022986,2]
[378053973,1754704248251,-1204.44,0.00022986,2]
[378053974,1754704248260,-460.0,0.00022986,2]
[378053975,1754704248271,-1498.59,0.00022986,2]
[378053976,1754704248280,-460.0,0.00022986,2]
[378053977,1754704248290,-460.0,0.00022986,2]
[378053978,1754704248299,-151.0,0.00022997,7]
[378053979,1754704248309,-153.045863,0.00022997,7]
[378053980,1754704248319,-460.0,0.00023018,2]
[378053981,1754704248328,-460.0,0.00023018,2]
[378053982,1754704248338,-460.0,0.00023018,2]
[378053983,1754704248347,-460.0,0.00023018,2]
[378053984,1754704248357,-460.0,0.00023018,2]
[378053985,1754704248367,-460.0,0.00023018,2]
[378053986,1754704248378,-460.0,0.00023018,2]
[378053987,1754704248388,-460.0,0.00023018,2]
[378053988,1754704248398,-460.0,0.00023018,2]
[378053989,1754704248408,-460.0,0.00023018,2]
[378053990,1754704248418,-621.55536,0.00023018,7]
[378053991,1754704248428,-621.55536,0.00023018,7]
[378053992,1754704248437,-460.0,0.00023018,2]
[378053993,1754704248447,-460.0,0.00023018,2]
[378053994,1754704248457,-460.0,0.00023018,2]
[378053995,1754704248466,-460.0,0.00023018,2]
[378053996,1754704248476,-460.0,0.00023018,2]
[378053997,1754704248485,-472.8864107,0.00023018,2]
[378053998,1754704248495,-460.0,0.00023018,2]
[378053999,1754704248505,-460.0,0.00023018,2]
[378054000,1754704248515,-2932.03,0.00023018,2]
[378054001,1754704248524,-460.0,0.00023018,2]
[378054002,1754704248534,-680.04,0.00023018,2]
[378054003,1754704248545,-460.0,0.00023018,2]
[378054004,1754704248554,-460.0,0.00023019,2]
[378054005,1754704248564,-480.42723386,0.00023019,2]
[378054006,1754704248574,-460.0,0.00023019,2]
[378054007,1754704248583,-460.0,0.00023019,2]
[378054008,1754704248593,-305.24252852,0.00023019,2]
[378054009,1754704248602,-477.55823721,0.00023019,2]
[378054010,1754704248612,-460.0,0.00023019,2]
[378054011,1754704248622,-460.0,0.00023019,2]
[378054012,1754704248631,-460.0,0.00023019,2]
[378054013,1754704248641,-460.0,0.00023019,2]
[378054014,1754704248650,-460.0,0.00023019,2]
[378054015,1754704248659,-460.0,0.00023019,2]
[378054016,1754704248668,-460.0,0.00023019,2]
[378054017,1754704248677,-475.97763256,0.00023019,2]
[378054018,1754704248687,-460.0,0.00023019,2]
[378054019,1754704248697,-460.0,0.00023019,2]
[378054020,1754704248706,-460.0,0.00023019,2]
[378054021,1754704248716,-460.0,0.00023019,2]
[378054022,1754704248726,-549.85,0.00023019,2]
[378054023,1754704248736,-472.78790562,0.00023019,2]
[378054024,1754704248746,-445.87661075,0.00023019,2]
[378054025,1754704248755,-781.79,0.00023019,2]
[378054026,1754704248765,-590.59,0.00023019,2]
[378054027,1754704248775,-473.59400237,0.00023019,2]
[378054028,1754704248784,-745.87,0.00023019,2]
[378054029,1754704248794,-460.0,0.00023019,2]
[378054030,1754704248804,-241.515572,0.00023019,7]
[378054031,1754704248814,-151.0,0.00023019,7]
[378054032,1754704248824,-460.0,0.00023019,2]
[378054033,1754704248834,-460.0,0.00023019,2]
[378054034,1754704248846,-999.87,0.00023019,2]
[378054035,1754704248855,-151.0,0.00023019,7]
[378054036,1754704248864,-460.0,0.00023019,2]
[378054037,1754704248874,-460.0,0.00023019,2]
[378054038,1754704248884,-460.0,0.00023019,2]
[378054039,1754704248894,-596.07,0.00023019,2]
[378054040,1754704248905,-605.28,0.00023019,2]
[378054041,1754704248914,-460.0,0.00023019,2]
[378054042,1754704248924,-460.0,0.00023019,2]
[378054043,1754704248934,-460.0,0.00023019,2]
[378054044,1754704248944,-460.0,0.00023019,2]
[378054045,1754704248954,-460.0,0.00023019,2]
[378054046,1754704248963,-460.0,0.00023019,2]
[378054047,1754704248972,-460.0,0.00023019,2]
[378054048,1754704248981,-460.0,0.00023019,2]
[378054049,1754704248990,-460.0,0.00023019,2]
[378054050,1754704249000,-193.077546,0.0002302,7]
[378054051,1754704249009,-193.077546,0.0002302,7]
[378054052,1754704249019,-151.0,0.00023021,7]
[378054053,1754704249029,-294.794306,0.00023021,7]
[378054054,1754704249039,-294.794306,0.00023021,7]
[378054055,1754704249049,-500.98404244,0.00023073,2]
[378054056,1754704249058,-500.0,0.00023073,2]
[378054057,1754704249068,-500.0,0.00023073,2]
[378054058,1754704249167,-4633.32485847,0.00023078,2]
[378054059,1754704249177,-460.0,0.00023088,2]
[378054060,1754704249187,-474.31076698,0.00023088,2]
[378054061,1754704249196,-186.7298308,0.00023088,2]
[378054062,1754704249205,-460.0,0.00023088,2]
[378054063,1754704249216,-460.0,0.00023088,2]
[378054064,1754704249225,-460.0,0.00023088,2]
[378054065,1754704249235,-460.0,0.00023088,2]
[378054066,1754704249244,-151.0,0.00023088,7]
[378054067,1754704249254,-151.0,0.00023088,7]
[378054068,1754704249263,-473.56707233,0.00023088,2]
[378054069,1754704249273,-460.0,0.00023088,2]
[378054070,1754704249282,-460.0,0.00023088,2]
[378054071,1754704249291,-460.0,0.00023088,2]
[378054072,1754704249300,-460.0,0.00023088,2]
[378054073,1754704249310,-151.0,0.00023088,7]
[378054074,1754704249319,-460.0,0.00023088,2]
[378054075,1754704249329,-255.642124,0.00023088,7]
[378054076,1754704249338,-255.642124,0.00023088,7]
[378054077,1754704249348,-461.961372,0.00023088,7]
[378054078,1754704249357,-461.961372,0.00023088,7]
[378054079,1754704249368,-621.55536,0.00023088,7]
[378054080,1754704249377,-621.55536,0.00023088,7]
[378054081,1754704249387,-151.0,0.00023089,2]
[378054082,1754704249396,-151.0,0.00023089,2]
[378054083,1754704249406,-151.0,0.00023089,2]
[378054084,1754704249415,-249.95633272,0.00023091,2]
[378054085,1754704249424,-250.0,0.00023121,2]
[378054086,1754704249433,-151.0,0.00023127,2]
[378054087,1754704249443,-151.0,0.00023127,2]
[378054088,1754704249453,-500.0,0.00023127,2]
[378054089,1754704249463,-305.10817957,0.00023127,2]
[378054090,1754704249472,-151.0,0.00023127,2]
[378054091,1754704249481,-151.0,0.00023127,2]